Cogmind - Beta 11.1 --- EXPLORER MODE // 2022.06.06 @ 20:29:27 // Winter2019/RPGLIKE Player: Grimbling Result: Destroyed by G-73 Enforcer with Phase Gun Performance ------------- Evolutions (9) 4500 Regions Visited (22) 4400 Robots Destroyed (399) 1995 Value Destroyed (23657) 23657 Prototype IDs (51) 1020 Alien Tech Used (1) 200 Bonus (16892) 16892 TOTAL SCORE: 52664 Bonus ------- Triggered High Security 500 High Alert Combat Kills 8793 Follower Combat Kills 683 Entered Garrisons 200 Used RIF Installer 500 Met Zhirov 300 Met Warlord at Base 500 MAIN.C Attacked Warlord 500 Met Warlord at Research 2000 Invited to Help at Command 2000 Destroyed MAIN.C Guards 500 Met Warlord at Command 2000 Friendly Fire -1584 Cogmind --------- Core Integrity 0/1800 Matter 1450/1450 Energy 850/850 System Corruption 8% Temperature Cool (0) Movement Walking (120) Location -1/Command Parts ------- > --- POWER (3) -------- Improved Quantum Reactor Improved Quantum Reactor Improved Quantum Reactor > --- PROPULSION (5) --- Centrium Leg Centrium Leg Centrium Leg Centrium Leg > --- UTILITY (11) ----- Improved Matter Compressor Advanced Target Analyzer Experimental Core Analyzer Improved Armor Integrity Analyzer Recoil Nullifier Advanced Kinecellerator Advanced Weapon Cycler Advanced Phase Shifter Experimental Thermal Shield Tractor Beam > --- WEAPON (5) ------- Helical Railgun Helical Railgun > --- INVENTORY (6) ---- Advanced Terrain Scanner Advanced Field Recycling Unit (242) Transdimensional Reconstructor Vortex Driver (15) Vortex Driver (14) Peak State ------------ > --- POWER ------------ Improved Quantum Reactor Improved Quantum Reactor Improved Quantum Reactor > --- PROPULSION ------- Centrium Leg Centrium Leg Centrium Leg Centrium Leg Centrium Leg > --- UTILITY ---------- Improved Matter Compressor Advanced Target Analyzer Experimental Core Analyzer Improved Armor Integrity Analyzer Recoil Nullifier Advanced Kinecellerator Advanced Weapon Cycler Advanced Phase Shifter Centrium Medium Armor Plating Experimental Thermal Shield Advanced Field Recycling Unit > --- WEAPON ----------- Helical Railgun Helical Railgun Helical Railgun Helical Railgun Multirail > --- INVENTORY -------- Protomatter Advanced Terrain Scanner Tractor Beam Transdimensional Reconstructor Vortex Driver Vortex Driver [Rating: 214] Favorites ----------- Power Light Quantum Reactor Engine Light Angular Momentum Engine Power Core Neutrino Core Reactor Light Quantum Reactor Propulsion Myomer Leg Leg Myomer Leg Utility Tractor Beam Device Tractor Beam Storage Improved Matter Compressor Processor Improved Signal Interpreter Protection Centrium Medium Armor Plating Weapon KE Penetrator Energy Gun Improved EM Shotgun Energy Cannon Vortex Driver Ballistic Gun KE Penetrator Launcher Mini Grenade Launcher Build | -11 -10 -9 -8 -8 -7 -6 -5 -5 -5 -5 -4 -4 -4 -4 -4 -3 -3 -3 -3 -2 -1 -1 ------- Run | Scr Mat Mat Mat Sto Fac Fac Fac Upp Upp Zhi Pro Fac Upp Upp War Pro Res Gar Res Res Acc Com Slots Evolved 20 | 4 . 3 2 2 1 1 1 . . . . . 1 . . 1 1 . 1 2 . . Power 2 | . . 1 . . . . . . . . . . . . . . . . . 1 . . Propulsion 4 | 1 . 1 . . 1 1 . . . . . . . . . . . . . . . . Utility 10 | 2 . . 2 1 . . 1 . . . . . 1 . . . 1 . 1 1 . . Weapon 4 | 1 . 1 . 1 . . . . . . . . . . . 1 . . . . . . Parts Attached 191 | 8 . 9 5 15 5 6 4 5 1 9 4 17 2 1 3 2 11 7 15 36 5 21 Power 20 | 1 . 1 3 2 . 2 1 . . 1 1 1 . . . . . . . 6 . 1 Engine 8 | 1 . 1 3 1 . 2 . . . . . . . . . . . . . . . . Core 2 | . . . . 1 . . 1 . . . . . . . . . . . . . . . Reactor 10 | . . . . . . . . . . 1 1 1 . . . . . . . 6 . 1 Propulsion 45 | 2 . 1 1 6 1 2 . 1 . . 1 9 . . . . 1 3 4 11 1 1 Treads . | . . . . . . . . . . . . . . . . . . . . . . . Leg 45 | 2 . 1 1 6 1 2 . 1 . . 1 9 . . . . 1 3 4 11 1 1 Wheel . | . . . . . . . . . . . . . . . . . . . . . . . Hover . | . . . . . . . . . . . . . . . . . . . . . . . Flight . | . . . . . . . . . . . . . . . . . . . . . . . Utility 77 | 3 . . 1 3 4 1 2 1 1 4 1 4 1 1 . . 8 4 10 15 2 11 Device 40 | 2 . . 1 . . . 1 1 1 . . 1 1 . . . 4 3 6 8 2 9 Storage 12 | . . . . 2 1 . . . . 2 . 2 . . . . 1 . . 3 . 1 Processor 8 | . . . . 1 . . 1 . . . . . . . . . 2 1 1 1 . 1 Hackware . | . . . . . . . . . . . . . . . . . . . . . . . Protection 17 | 1 . . . . 3 1 . . . 2 1 1 . 1 . . 1 . 3 3 . . Artifact . | . . . . . . . . . . . . . . . . . . . . . . . Weapon 49 | 2 . 7 . 4 . 1 1 3 . 4 1 3 1 . 3 2 2 . 1 4 2 8 Energy Gun 4 | . . 3 . . . . . . . . . . . . 1 . . . . . . . Energy Cannon 3 | . . . . . . . . . . . . . . . 1 . . . . . . 2 Ballistic Gun 40 | 2 . 4 . 2 . 1 1 3 . 4 1 3 1 . 1 2 2 . 1 4 2 6 Ballistic Cannon . | . . . . . . . . . . . . . . . . . . . . . . . Launcher 2 | . . . . 2 . . . . . . . . . . . . . . . . . . Special Weapon . | . . . . . . . . . . . . . . . . . . . . . . . Impact Weapon . | . . . . . . . . . . . . . . . . . . . . . . . Slashing Weapon . | . . . . . . . . . . . . . . . . . . . . . . . Piercing Weapon . | . . . . . . . . . . . . . . . . . . . . . . . Special Melee Weapon . | . . . . . . . . . . . . . . . . . . . . . . . Unidentified Prototypes 30 | . . 2 1 2 . . . . . 4 . 1 . . 2 . 2 . 2 10 1 3 Parts Lost . | . . . . . . . . . . . . . . . . . . . . . . . Power . | . . . . . . . . . . . . . . . . . . . . . . . Propulsion . | . . . . . . . . . . . . . . . . . . . . . . . Utility . | . . . . . . . . . . . . . . . . . . . . . . . Weapon . | . . . . . . . . . . . . . . . . . . . . . . . Highest Loss Streak . | . . . . . . . . . . . . . . . . . . . . . . . To Critical Strikes . | . . . . . . . . . . . . . . . . . . . . . . . Average Slot Usage (%) 98 | . 100 88 92 97 100 98 98 100 100 77 100 100 100 100 99 99 99 99 99 99 99 99 Engine 2 | . 12 14 15 6 6 8 7 5 5 5 1 . . . . . . . . . . . Core 1 | . . . . 5 6 2 2 5 5 2 . . . . . . . . . . . . Reactor 6 | . . . . . . . . . . 2 9 11 10 10 10 10 9 9 9 8 12 12 Leg 23 | . 25 25 24 20 25 27 27 27 27 27 27 27 26 26 26 25 24 23 22 21 19 19 Device 23 | . 25 19 19 20 18 17 18 22 22 22 22 22 25 26 26 25 24 22 24 25 27 25 Storage 4 | . . . . 3 6 5 5 5 5 4 5 5 5 5 5 5 4 4 4 3 4 4 Processor 6 | . . . . 4 6 5 6 5 5 5 5 5 5 5 5 5 5 9 9 9 9 11 Protection 5 | . 12 9 7 6 6 5 5 5 5 5 5 5 5 5 5 5 4 4 6 6 4 3 Ballistic Gun 21 | . 25 20 24 25 25 23 22 22 22 . 22 22 21 21 20 23 24 23 21 21 19 19 Naked Turns . | . . . . . . . . . . . . . . . . . . . . . . . Heaviest Build 127 | 14 14 25 33 36 35 57 66 72 74 74 72 73 68 68 68 73 84 98 99 104 108 127 Greatest Support 160 | 20 20 30 35 43 48 78 78 86 86 86 99 135 135 135 135 135 135 128 114 160 160 160 Greatest Overweight (x) 11 | . . . . 11 . . . . . . . . . . . . . . . . . . Average Overweight (x) . | . . . . . . . . . . . . . . . . . . . . . . . Largest Inventory Capacity 6 | 3 3 3 3 3 4 5 5 5 5 5 5 5 5 5 6 6 6 6 6 6 6 6 Average Capacity 5 | 2 3 3 3 3 3 4 5 5 5 5 5 5 5 5 5 6 6 6 6 6 6 6 Most Carried 6 | . 1 3 3 3 3 5 5 5 5 5 5 5 5 5 6 6 6 6 6 6 6 6 Average Carried 4 | . . 1 2 2 2 4 5 4 5 5 5 5 4 5 5 5 5 5 5 5 5 5 Final Capacity 6 | 3 3 3 3 3 4 5 5 5 5 5 5 5 5 5 6 6 6 6 6 6 6 6 Final Carried 6 | . 1 1 3 3 3 5 5 5 5 5 5 5 5 5 6 6 6 6 5 6 5 5 Class Distribution -------------------- 45% | Scavenger-Gunner 39% | Scavenger-Skirmisher 7% | Hacker-Skirmisher 5% | Commander-Skirmisher Dominant Class ---------------- Hacker-Skirmisher | -10/Materials Hacker-Skirmisher | -9/Materials Hacker-Skirmisher | -8/Materials Scavenger-Skirmisher | -8/Storage Commander-Skirmisher | -7/Factory Commander-Skirmisher | -6/Factory Scavenger-Skirmisher | -5/Factory Scavenger-Skirmisher | -5/Upper Caves Scavenger-Skirmisher | -5/Upper Caves Scavenger-Mutant | -5/Zhirov Scavenger-Skirmisher | -4/Proximity Caves Scavenger-Skirmisher | -4/Factory Scavenger-Skirmisher | -4/Upper Caves Scavenger-Skirmisher | -4/Upper Caves Scavenger-Skirmisher | -4/Warlord Scavenger-Skirmisher | -3/Proximity Caves Scavenger-Skirmisher | -3/Research Scavenger-Gunner | -3/Garrison Scavenger-Gunner | -3/Research Scavenger-Gunner | -2/Research Scavenger-Gunner | -1/Access Scavenger-Gunner | -1/Command Resources | -11 -10 -9 -8 -8 -7 -6 -5 -5 -5 -5 -4 -4 -4 -4 -4 -3 -3 -3 -3 -2 -1 -1 ----------- Run | Scr Mat Mat Mat Sto Fac Fac Fac Upp Upp Zhi Pro Fac Upp Upp War Pro Res Gar Res Res Acc Com Matter Collected 15439 | 312 67 352 278 777 402 524 247 1107 239 10 253 652 164 100 . 325 807 1547 1590 1666 718 3302 Remotely 14229 | . . . 156 777 402 524 247 1107 239 . 253 561 160 100 . 325 743 1396 1590 1666 718 3265 Salvage Created 24389 | 133 148 327 494 846 273 514 204 848 205 . 236 869 133 176 . 359 737 1984 3109 1771 921 10102 Parts 1174 | 5 11 24 24 91 13 12 20 43 3 . 12 50 8 9 . 23 40 85 151 116 76 358 Haulers Intercepted 15 | . 1 2 2 4 . . . . . . . 1 . . . . . . 2 2 1 . Recyclers Shooed 1 | . . . . . . . 1 . . . . . . . . . . . . . . . Parts Field Recycled 52 | . . . . . . . . . . . . . . . . . . . . . . 52 Retrieved Matter 884 | . . . . . . . . . . . . . . . . . . . . . . 884 Parts Self-Destructed . | . . . . . . . . . . . . . . . . . . . . . . . Prevented . | . . . . . . . . . . . . . . . . . . . . . . . Kills | -11 -10 -9 -8 -8 -7 -6 -5 -5 -5 -5 -4 -4 -4 -4 -4 -3 -3 -3 -3 -2 -1 -1 ------- Run | Scr Mat Mat Mat Sto Fac Fac Fac Upp Upp Zhi Pro Fac Upp Upp War Pro Res Gar Res Res Acc Com Combat Hostiles Destroyed 352 | . 4 5 8 19 1 5 6 23 2 . 3 12 2 3 . 7 9 28 35 30 13 137 Guns 351 | . 4 5 8 19 1 5 6 23 2 . 3 12 2 3 . 7 9 28 35 30 13 136 Cannons 1 | . . . . . . . . . . . . . . . . . . . . . . 1 Classes Destroyed 25 | 2 4 1 . 3 . . 1 1 . . . . 2 . . . 1 2 1 . 1 6 Worker 14 | . . . . 3 . . . . . . . 2 . . . . . . 2 . . 7 Builder 9 | . . . . 1 1 . 1 . . . . 1 . . . . . . 2 . 3 . Tunneler 2 | 2 . . . . . . . . . . . . . . . . . . . . . . Hauler 15 | . 1 2 2 4 . . . . . . . 1 . . . . . . 2 2 1 . Recycler 7 | 1 . . 1 . 1 2 . . . . . . . . . . . . . 1 . 1 Carrier 2 | . . . . . . . . . . . . . . . . . . . . . . 2 Mechanic 1 | . . . . . . . . . . . . . . . . . . . 1 . . . Operator 7 | . . . . 2 3 . . . . . . . . . . . 1 . 1 . . . Watcher 23 | . 1 2 1 2 1 2 . . . . . 1 . . . . 2 . 4 3 . 4 Swarmer 53 | . 3 . 2 . . . . 7 . . . . . . . 2 . 5 4 13 3 14 Cutter 4 | . . . . . . . . . . . . . . . . . . . . . . 4 Saboteur 1 | . . . . . . . . . . . . . . . . . . . . . . 1 Grunt 118 | . 1 3 4 9 . 4 4 12 2 . 2 2 . . . . 2 5 12 3 . 53 Brawler 11 | . . . . . . . . . . . . . . . . . . 3 1 . . 7 Duelist 14 | . . . . . . . . . . . . . . . . . 1 3 7 . . 3 Protector 1 | . . . . . . . . . . . . . . . . . . . . . . 1 Sentry 45 | . . 2 2 10 1 1 1 3 . . 1 4 . 1 . . 4 2 4 5 2 2 Specialist 2 | . . . . . . . . . . . . . . . . . . 1 1 . . . Hunter 42 | . . . . . . . . 1 . . . 4 . . . 5 . 5 . 8 . 19 Programmer 46 | . . . . . . . 1 . . . . 2 . 2 . . 2 4 7 . 6 22 Heavy 1 | . . . . . . . . . . . . . . . . . . . . . 1 . Behemoth 5 | . . . . . . . . . . . . . 1 . . . . . . 1 1 2 M Guard 1 | . . . . . . . . . . . . . . . . . . . . . . 1 Combat Programmer 1 | . . . . . . . . . . . . . . . . . . . . . . 1 Striker 2 | . . . . . . . . . . . . . . . . . . . . . . 2 Executioner 4 | . . . . . . . . . . . . . . . . . . . . . . 4 Mutant 2 | . . . . . . . . . . . . . 1 . . . . . . . . 1 Best Kill Streak 54 | 2 3 3 3 8 2 4 3 13 2 . 1 5 1 2 . 3 4 8 9 7 7 54 Combat Bots Only 53 | . 2 2 2 5 1 2 2 13 2 . 1 2 1 2 . 3 3 8 8 7 4 53 Max Kills in Single Turn 4 | 1 1 1 1 2 2 2 1 1 1 . 1 3 1 1 . 2 1 2 3 3 3 4 Gunslinging 3 | . . . . . . 1 . . . . . 1 . . . 1 . 1 2 2 . 3 Exploded . | . . . . . . . . . . . . . . . . . . . . . . . Melee . | . . . . . . . . . . . . . . . . . . . . . . . Uniques/NPCs Destroyed 1 | . . . . . . . . . . . . . . . . . . . . . . 1 Warlord (-1/Command) Combat | -11 -10 -9 -8 -8 -7 -6 -5 -5 -5 -5 -4 -4 -4 -4 -4 -3 -3 -3 -3 -2 -1 -1 -------- Run | Scr Mat Mat Mat Sto Fac Fac Fac Upp Upp Zhi Pro Fac Upp Upp War Pro Res Gar Res Res Acc Com Damage Taken 11042 | . 86 193 163 579 150 239 224 264 76 . 114 462 163 38 . 290 250 626 616 1216 913 4380 Core 7856 | . 57 133 121 425 103 164 158 191 55 . 79 321 127 25 . 221 193 409 377 806 673 3218 Absorbed by Shields 244 | . . . . . . . . . . . . . . . . . . 12 232 . . . Redirected to Core 7189 | . 54 133 101 367 82 117 125 171 55 . 79 306 103 25 . 197 193 402 342 743 639 2955 Redirected to Shielding 11 | . . . . . . . . . . . 11 . . . . . . . . . . . Core Remaining (%) 97 | 100 97 94 . 100 94 100 . . . . 96 . . . . 100 . . 100 97 . . Volleys Fired 687 | 8 22 25 23 65 15 23 20 33 5 . 6 30 8 4 . 15 22 61 60 53 28 161 Largest 5 | 2 2 2 3 4 4 4 4 4 4 . 4 4 4 4 . 5 5 5 5 5 5 5 Hottest 200 | 40 40 46 69 99 92 99 109 124 122 . 122 132 134 134 . 164 176 176 176 186 196 200 Shots Fired 2849 | 16 44 50 69 236 60 92 80 132 21 . 24 120 32 15 . 65 109 298 292 261 136 697 Gun 2817 | 16 44 50 69 234 60 92 80 132 21 . 24 120 32 15 . 65 109 298 292 261 136 667 Cannon 30 | . . . . . . . . . . . . . . . . . . . . . . 30 Launcher 2 | . . . . 2 . . . . . . . . . . . . . . . . . . Special . | . . . . . . . . . . . . . . . . . . . . . . . Kinetic 2817 | 16 44 50 69 234 60 92 80 132 21 . 24 120 32 15 . 65 109 298 292 261 136 667 Thermal . | . . . . . . . . . . . . . . . . . . . . . . . Explosive 2 | . . . . 2 . . . . . . . . . . . . . . . . . . Electromagnetic . | . . . . . . . . . . . . . . . . . . . . . . . Entropic 30 | . . . . . . . . . . . . . . . . . . . . . . 30 Robot Hit Streak 62 | 8 17 44 50 25 14 31 22 62 46 . 62 31 22 29 . 17 34 61 37 43 48 51 Robot Miss Streak 3 | 1 3 1 1 2 1 2 2 1 . . 2 1 1 1 . 2 2 1 2 2 1 2 Penetration Max 2 | . . . . . . . . . 1 . . 1 . 1 . 1 . 2 2 1 2 2 Secondary Targets 103 | . 1 . 3 2 . 5 1 2 . . . 2 . . . 2 1 7 12 9 1 55 Max Gunslinging Chain 3 | . 1 . 1 1 . 2 1 1 . . . 1 . . . 1 1 1 2 2 1 3 Shots Hit Robots 2172 | 13 29 45 55 145 27 79 61 95 18 . 18 100 25 12 . 49 78 211 222 200 96 594 Core Hits 1008 | 4 10 18 22 58 10 30 21 47 6 . 9 41 8 6 . 17 30 71 92 73 35 400 Critical Kills 106 | . . . . 1 . . 1 2 . . . 2 . . . 2 . 15 14 15 7 47 Critical Parts Destroyed 137 | . 1 . 1 1 . . 2 . . . . 2 1 . . . 2 19 29 16 9 54 Critical Strikes 280 | . 1 . 1 2 . . 3 2 . . . 4 1 . . 2 3 35 47 34 23 122 Destroy 265 | . 1 . 1 2 . . 3 2 . . . 4 1 . . 2 3 35 47 34 23 107 Sunder 15 | . . . . . . . . . . . . . . . . . . . . . . 15 Melee Attacks . | . . . . . . . . . . . . . . . . . . . . . . . Impact . | . . . . . . . . . . . . . . . . . . . . . . . Slashing . | . . . . . . . . . . . . . . . . . . . . . . . Piercing . | . . . . . . . . . . . . . . . . . . . . . . . Sneak Attacks . | . . . . . . . . . . . . . . . . . . . . . . . Combat Hostiles . | . . . . . . . . . . . . . . . . . . . . . . . Follow-up Attacks . | . . . . . . . . . . . . . . . . . . . . . . . Damage Inflicted 69184 | 142 315 505 828 2297 435 1401 1244 1952 466 . 429 2993 772 523 . 1208 2497 5334 7572 5226 3572 29473 Guns 66395 | 142 315 505 828 2281 435 1376 1225 1952 466 . 429 2953 772 523 . 1208 2445 5334 7510 5226 3556 26914 Cannons 2453 | . . . . . . . . . . . . . . . . . . . . . . 2453 Explosions 56 | . . . . . . . . . . . . . . . . . . . . . . 56 Melee . | . . . . . . . . . . . . . . . . . . . . . . . Ramming 280 | . . . . 16 . 25 19 . . . . 40 . . . . 52 . 62 . 16 50 Kinetic 66395 | 142 315 505 828 2281 435 1376 1225 1952 466 . 429 2953 772 523 . 1208 2445 5334 7510 5226 3556 26914 Thermal . | . . . . . . . . . . . . . . . . . . . . . . . Explosive 56 | . . . . . . . . . . . . . . . . . . . . . . 56 Electromagnetic . | . . . . . . . . . . . . . . . . . . . . . . . Impact . | . . . . . . . . . . . . . . . . . . . . . . . Slashing . | . . . . . . . . . . . . . . . . . . . . . . . Piercing . | . . . . . . . . . . . . . . . . . . . . . . . Entropic 2453 | . . . . . . . . . . . . . . . . . . . . . . 2453 Highest Corruption 8 | . . . . . . . 2 2 2 2 2 2 2 2 2 . 3 6 7 . . 8 Average Corruption 3 | . . . . . . . 1 2 2 2 2 1 2 2 2 . 3 5 6 . . 4 Corruption Purged . | . . . . . . . . . . . . . . . . . . . . . . . Corruption Blocked 21 | . . . . . . . . . . . . . . . . . . . . 21 . . Effects 168 | . . . . . . . 1 17 11 2 3 5 5 5 . . 10 33 42 . . 34 Message Errors 42 | . . . . . . . . 5 2 2 1 3 . 1 . . 2 8 9 . . 9 Matter Fused 33 | . . . . . . . . 5 1 . 1 . 2 3 . . 2 7 6 . . 6 Heat Flow Errors 13 | . . . . . . . . . 1 . . . 2 . . . 2 4 1 . . 3 Energy Discharges 21 | . . . . . . . . 3 1 . 1 . . . . . 2 4 6 . . 4 Parts Rejected 3 | . . . . . . . . . . . . . . . . . . 2 . . . 1 Data Loss (minor) 14 | . . . . . . . 1 1 3 . . . 1 . . . . 2 5 . . 1 Data Loss (major) 9 | . . . . . . . . 1 1 . . . . . . . 1 3 1 . . 2 Misfires 7 | . . . . . . . . . 1 . . . . . . . . . 3 . . 3 Alerts 8 | . . . . . . . . 2 1 . . 2 . . . . . . 3 . . . Weapon Failures 18 | . . . . . . . . . . . . . . 1 . . 1 3 8 . . 5 Overload Shots . | . . . . . . . . . . . . . . . . . . . . . . . Overflow Damage 57 | . . . . . . . 4 . . . . 1 . . . . 2 . 22 . . 28 Projectiles 28 | . . . . . . . . . . . . . . . . . . . . . . 28 Explosions . | . . . . . . . . . . . . . . . . . . . . . . . Melee 29 | . . . . . . . 4 . . . . 1 . . . . 2 . 22 . . . Knockbacks 4 | . . . . . . 1 . . . . . 2 . . . . . . . . 1 . Impact 4 | . . . . . . 1 . . . . . 2 . . . . . . . . 1 . Kinetic . | . . . . . . . . . . . . . . . . . . . . . . . Secondary . | . . . . . . . . . . . . . . . . . . . . . . . Self-Inflicted Damage . | . . . . . . . . . . . . . . . . . . . . . . . Shots . | . . . . . . . . . . . . . . . . . . . . . . . Rammed . | . . . . . . . . . . . . . . . . . . . . . . . Targets Rammed 16 | . . . . 3 . 2 1 . . . . 3 . . . . 2 . 1 . 1 3 Kicked 16 | . . . . 3 . 2 1 . . . . 3 . . . . 2 . 1 . 1 3 Crushed . | . . . . . . . . . . . . . . . . . . . . . . . Highest Temperature 255 | 6 19 61 124 . 13 15 31 85 175 . 22 . 193 30 . 60 255 177 223 224 36 220 Average Temperature 44 | 4 6 19 57 . 13 6 9 22 47 . 10 . 45 21 . 21 25 53 82 81 11 30 Received Heat Transfer 2147 | . 30 144 126 315 87 162 117 162 55 . 81 18 27 . . . 57 105 112 99 9 441 Siege Activations . | . . . . . . . . . . . . . . . . . . . . . . . Robots Corrupted . | . . . . . . . . . . . . . . . . . . . . . . . Combat Hostiles . | . . . . . . . . . . . . . . . . . . . . . . . Parts Fried 5 | . . . 3 . . . . . . . . . . . . . . . 2 . . . Impact Corruptions 4 | . . . . . . . 1 . . . . 1 . . . . 1 . 1 . . . Robots Melted . | . . . . . . . . . . . . . . . . . . . . . . . Combat Hostiles . | . . . . . . . . . . . . . . . . . . . . . . . Parts Melted . | . . . . . . . . . . . . . . . . . . . . . . . Heat Transferred . | . . . . . . . . . . . . . . . . . . . . . . . Parts Sabotaged 6 | . . . . . . . . . . . . . . . . . . . . . . 6 Parts Stolen . | . . . . . . . . . . . . . . . . . . . . . . . Parts Stripped . | . . . . . . . . . . . . . . . . . . . . . . . Power Chain Reactions . | . . . . . . . . . . . . . . . . . . . . . . . Missiles Intercepted . | . . . . . . . . . . . . . . . . . . . . . . . Alert | -11 -10 -9 -8 -8 -7 -6 -5 -5 -5 -5 -4 -4 -4 -4 -4 -3 -3 -3 -3 -2 -1 -1 ------- Run | Scr Mat Mat Mat Sto Fac Fac Fac Upp Upp Zhi Pro Fac Upp Upp War Pro Res Gar Res Res Acc Com Peak Influence 2781 | 15 109 217 214 465 142 445 136 . . . . 190 . . . . 298 1372 941 704 396 2781 Initial 579 | . 7 32 19 14 55 1 54 . . . . 33 . . . . 26 173 579 271 . 86 Average 419 | 8 35 85 90 196 53 205 63 . . . . 87 . . . . 88 901 675 403 143 870 Maximum Alert Level 5 | . . 1 1 2 . 2 . . . . . . . . . . 1 4 3 3 1 5 Low Security (%) 44 | 100 100 89 90 59 100 55 100 . . . . 100 . . . . 91 3 . 22 82 5 Level 1 9 | . . 10 9 31 . 33 . . . . . . . . . . 8 6 . 9 17 7 Level 2 22 | . . . . 9 . 10 . . . . . . . . . . . 21 58 63 . 18 Level 3 16 | . . . . . . . . . . . . . . . . . . 33 41 4 . 54 Level 4 4 | . . . . . . . . . . . . . . . . . . 35 . . . 1 Level 5 . | . . . . . . . . . . . . . . . . . . . . . . 3 High Security 1 | . . . . . . . . . . . . . . . . . . . . . . 8 Max Security . | . . . . . . . . . . . . . . . . . . . . . . . Squads Dispatched 37 | . . 1 . 2 . 3 3 . . . . 1 . . . . 2 . 7 1 4 13 Investigation 4 | . . . . 1 . 1 . . . . . . . . . . . . 2 . . . Extermination 12 | . . . . . . . 1 . . . . 1 . . . . 1 . 2 . 2 5 Reinforcement 12 | . . 1 . 1 . 2 2 . . . . . . . . . 1 . 1 1 2 1 Assault 9 | . . . . . . . . . . . . . . . . . . . 2 . . 7 Garrison . | . . . . . . . . . . . . . . . . . . . . . . . Intercept . | . . . . . . . . . . . . . . . . . . . . . . . Searches Triggered . | . . . . . . . . . . . . . . . . . . . . . . . Construction Impeded . | . . . . . . . . . . . . . . . . . . . . . . . Haulers Reinforced 4 | . . . . . . . . . . . . . . . . . . . 1 1 2 . Active Scanning Responses . | . . . . . . . . . . . . . . . . . . . . . . . Cargo Convoy Interrupts . | . . . . . . . . . . . . . . . . . . . . . . . Stealth | -11 -10 -9 -8 -8 -7 -6 -5 -5 -5 -5 -4 -4 -4 -4 -4 -3 -3 -3 -3 -2 -1 -1 --------- Run | Scr Mat Mat Mat Sto Fac Fac Fac Upp Upp Zhi Pro Fac Upp Upp War Pro Res Gar Res Res Acc Com Distress Signals 17 | . 1 . . 4 . . . . . . . . . . . . . . . 6 1 5 Communications Jammed 27 | . . . . . . . . . . . . 2 . . . . 10 . 9 4 2 . Distress Signals 23 | . . . . . . . . . . . . 2 . . . . 8 . 8 4 1 . Times Spotted 488 | . 8 11 11 23 6 18 13 15 2 . 3 13 2 3 4 7 13 32 43 36 13 212 Peak Tracking Total 39 | . 2 3 3 3 1 3 4 3 2 . 1 2 1 2 7 3 2 5 9 5 3 39 Tactical Retreats 16 | . 1 . 1 1 . . 2 . . . . . . . . . . 3 2 . . 6 Traps | -11 -10 -9 -8 -8 -7 -6 -5 -5 -5 -5 -4 -4 -4 -4 -4 -3 -3 -3 -3 -2 -1 -1 ------- Run | Scr Mat Mat Mat Sto Fac Fac Fac Upp Upp Zhi Pro Fac Upp Upp War Pro Res Gar Res Res Acc Com Traps Triggered 13 | . . . . 1 . . . . . . . 1 . . . . 2 4 2 . 1 2 Indirectly . | . . . . . . . . . . . . . . . . . . . . . . . Trap Hack Attempts . | . . . . . . . . . . . . . . . . . . . . . . . Triggered . | . . . . . . . . . . . . . . . . . . . . . . . Disarmed . | . . . . . . . . . . . . . . . . . . . . . . . Reprogrammed 7 | . 2 . 3 2 . . . . . . . . . . . . . . . . . . Reused 1 | . . . 1 . . . . . . . . . . . . . . . . . . . Traps Extracted . | . . . . . . . . . . . . . . . . . . . . . . . Installed . | . . . . . . . . . . . . . . . . . . . . . . . Triggered 13 | . . . 1 . . . . 2 2 . . . . . 8 . . . . . . . Machines | -11 -10 -9 -8 -8 -7 -6 -5 -5 -5 -5 -4 -4 -4 -4 -4 -3 -3 -3 -3 -2 -1 -1 ---------- Run | Scr Mat Mat Mat Sto Fac Fac Fac Upp Upp Zhi Pro Fac Upp Upp War Pro Res Gar Res Res Acc Com Machines Disabled 35 | . . . . 1 1 2 2 5 . . . 3 1 . . . 1 6 5 1 2 5 Max in Single Turn 2 | . . . . 1 1 1 1 1 . . . 2 1 . . . 1 1 2 1 1 2 Garrison Access 6 | . . . . 1 . . 1 . . . . . . . . . . . 1 3 . . Garrison Relay 5 | . . . . . . . . . . . . . . . . . . 5 . . . . Phase Generator 1 | . . . . . . . . . . . . . . . . . . . . . . 1 Machines Sabotaged . | . . . . . . . . . . . . . . . . . . . . . . . Garrisons Compromised . | . . . . . . . . . . . . . . . . . . . . . . . Overloaded Fab Kills . | . . . . . . . . . . . . . . . . . . . . . . . Hacking | -11 -10 -9 -8 -8 -7 -6 -5 -5 -5 -5 -4 -4 -4 -4 -4 -3 -3 -3 -3 -2 -1 -1 --------- Run | Scr Mat Mat Mat Sto Fac Fac Fac Upp Upp Zhi Pro Fac Upp Upp War Pro Res Gar Res Res Acc Com Machines Accessed 70 | . 2 5 3 8 5 4 7 2 1 4 . 5 . 1 4 . 2 . 7 . 6 4 Terminals 47 | . 2 5 3 7 3 2 5 1 . . . 3 . . . . 1 . 5 . 6 4 Fabricators 6 | . . . . . 1 2 1 . . . . 1 . . . . . . 1 . . . Repair Stations . | . . . . . . . . . . . . . . . . . . . . . . . Recycling Units 1 | . . . . . 1 . . . . . . . . . . . . . . . . . Scanalyzers 1 | . . . . . . . . . . . . 1 . . . . . . . . . . Garrison Access 4 | . . . . 1 . . 1 . . . . . . . . . 1 . 1 . . . Total Hacks 177 | . 8 19 7 25 14 6 20 3 1 17 . 13 . 1 11 . 2 . 14 . 9 7 Successful 106 | . 4 9 7 12 7 3 12 3 1 17 . 6 . 1 11 . 1 . 5 . 5 2 Failed 71 | . 4 10 . 13 7 3 8 . . . . 7 . . . . 1 . 9 . 4 5 Catastrophic 8 | . . 1 . . . . 2 . . . . . . . . . 1 . 2 . 2 . Database Lockouts . | . . . . . . . . . . . . . . . . . . . . . . . Manual 91 | . 7 9 1 17 13 6 15 . . . . 2 . . 2 . 1 . 10 . 4 4 Terminals 126 | . 8 19 7 24 8 4 17 2 . . . 9 . . . . 1 . 11 . 9 7 Fabricators 9 | . . . . . 2 2 2 . . . . 1 . . . . . . 2 . . . Repair Stations . | . . . . . . . . . . . . . . . . . . . . . . . Recycling Units 4 | . . . . . 4 . . . . . . . . . . . . . . . . . Scanalyzers 3 | . . . . . . . . . . . . 3 . . . . . . . . . . Garrison Access 4 | . . . . 1 . . 1 . . . . . . . . . 1 . 1 . . . Terminal Hacks 79 | . 4 7 6 9 1 . 6 3 1 17 . 4 . 1 11 . . . 3 . 4 2 Record 11 | . . . . . . . . 2 . 5 . . . . 4 . . . . . . . Part Schematic 4 | . . . . . . . . . . 4 . . . . . . . . . . . . Robot Analysis 4 | . . . . . . . . . . 4 . . . . . . . . . . . . Prototype ID Bank 11 | . . 1 1 . . . . . . 4 . . . . 5 . . . . . . . Open Door 12 | . . . . 3 . . . 1 1 . . . . 1 2 . . . . . 3 1 Branch Access Points 3 | . . . . . . . 1 . . . . 1 . . . . . . 1 . . . Alert Level 2 | . . . . 1 . . 1 . . . . . . . . . . . . . . . Unreport Threat 24 | . 3 5 4 3 1 . 2 . . . . 3 . . . . . . 2 . 1 . Locate Traps 1 | . . 1 . . . . . . . . . . . . . . . . . . . . Reprogram Traps 4 | . 1 . 1 2 . . . . . . . . . . . . . . . . . . Recall Investigation 1 | . . . . . . . 1 . . . . . . . . . . . . . . . Recall Reinforcements 1 | . . . . . . . 1 . . . . . . . . . . . . . . . Disengage Seal 1 | . . . . . . . . . . . . . . . . . . . . . . 1 Fabricator Hacks 2 | . . . . . 1 . 1 . . . . . . . . . . . . . . . Network Status 1 | . . . . . 1 . . . . . . . . . . . . . . . . . Build 1 | . . . . . . . 1 . . . . . . . . . . . . . . . Repair Station Hacks . | . . . . . . . . . . . . . . . . . . . . . . . Recycling Unit Hacks . | . . . . . . . . . . . . . . . . . . . . . . . Scanalyzer 1 | . . . . . . . . . . . . 1 . . . . . . . . . . Insert Component 1 | . . . . . . . . . . . . 1 . . . . . . . . . . Garrison Access Hacks 4 | . . . . 1 . . 1 . . . . . . . . . 1 . 1 . . . Unlock Access 1 | . . . . . . . . . . . . . . . . . 1 . . . . . Seal Access 3 | . . . . 1 . . 1 . . . . . . . . . . . 1 . . . Unauthorized Hacks 20 | . . 2 1 2 5 3 4 . . . . 1 . . . . . . 1 . 1 . Terminals 12 | . . 2 1 2 2 1 3 . . . . . . . . . . . . . 1 . Track 1 | . . . . . . . 1 . . . . . . . . . . . . . . . Assimilate 1 | . . . . . . . 1 . . . . . . . . . . . . . . . Botnet 10 | . . 2 1 2 2 1 1 . . . . . . . . . . . . . 1 . Fabricators 6 | . . . . . 1 2 1 . . . . 1 . . . . . . 1 . . . Liberate 6 | . . . . . 1 2 1 . . . . 1 . . . . . . 1 . . . Repair Stations . | . . . . . . . . . . . . . . . . . . . . . . . Recycling Units 2 | . . . . . 2 . . . . . . . . . . . . . . . . . Monitor 1 | . . . . . 1 . . . . . . . . . . . . . . . . . Recyclers 1 | . . . . . 1 . . . . . . . . . . . . . . . . . Scanalyzers . | . . . . . . . . . . . . . . . . . . . . . . . Garrison Access . | . . . . . . . . . . . . . . . . . . . . . . . Data Cores Recovered 5 | . . . . 1 2 . . . . . . . . . . . . . 1 . . 1 Used 3 | . . . . . 1 . . . . . . . . . . . . . 1 . . 1 Hacking Detections 46 | . 1 4 3 6 4 2 6 1 . . . 4 . . . . 2 . 6 . 4 3 Full Trace Events 3 | . . . . 1 . . . . . . . . . . . . . . 2 . . . Feedback Events . | . . . . . . . . . . . . . . . . . . . . . . . Feedback Blocked . | . . . . . . . . . . . . . . . . . . . . . . . Robot Schematics Acquired . | . . . . . . . . . . . . . . . . . . . . . . . Robots Built 3 | . . . . . . . 3 . . . . . . . . . . . . . . . Authchips . | . . . . . . . . . . . . . . . . . . . . . . . Time 134 | . . . . . . . 134 . . . . . . . . . . . . . . . Total Robot Build Rating 12 | . . . . . . . 12 . . . . . . . . . . . . . . . Part Schematics Acquired 4 | . . . . . . . . . . 4 . . . . . . . . . . . . Parts Built . | . . . . . . . . . . . . . . . . . . . . . . . Authchips . | . . . . . . . . . . . . . . . . . . . . . . . Time . | . . . . . . . . . . . . . . . . . . . . . . . Total Part Build Rating . | . . . . . . . . . . . . . . . . . . . . . . . Parts Repaired . | . . . . . . . . . . . . . . . . . . . . . . . Time . | . . . . . . . . . . . . . . . . . . . . . . . Parts Recycled . | . . . . . . . . . . . . . . . . . . . . . . . Recycled Matter . | . . . . . . . . . . . . . . . . . . . . . . . Retrieved Matter . | . . . . . . . . . . . . . . . . . . . . . . . Retrieved Components . | . . . . . . . . . . . . . . . . . . . . . . . Parts Scanalyzed . | . . . . . . . . . . . . . . . . . . . . . . . Part Schematics Acquired . | . . . . . . . . . . . . . . . . . . . . . . . Parts Damaged . | . . . . . . . . . . . . . . . . . . . . . . . Bothacking | -11 -10 -9 -8 -8 -7 -6 -5 -5 -5 -5 -4 -4 -4 -4 -4 -3 -3 -3 -3 -2 -1 -1 ------------ Run | Scr Mat Mat Mat Sto Fac Fac Fac Upp Upp Zhi Pro Fac Upp Upp War Pro Res Gar Res Res Acc Com Used RIF Installer 1 | . . . . . . . . . . . . . . . . . . 1 . . . . Robots Hacked . | . . . . . . . . . . . . . . . . . . . . . . . Non-combat . | . . . . . . . . . . . . . . . . . . . . . . . Combat . | . . . . . . . . . . . . . . . . . . . . . . . Robot Hacks Applied . | . . . . . . . . . . . . . . . . . . . . . . . Relay Couplers Released 8 | . . . . . . . . . . . . . . . . . . 8 . . . . Machine Destruction 8 | . . . . . . . . . . . . . . . . . . 8 . . . . Fabnet Peak Effective % . | . . . . . . . . . . . . . . . . . . . . . . . Robots Rewired 9 | . . . . . . . . . . . . . . . . . . 9 . . . . Allies Hacked 2 | . . . . . . . . . . . . . . . . . . . 2 . . . Hacks Repelled . | . . . . . . . . . . . . . . . . . . . . . . . Allies | -11 -10 -9 -8 -8 -7 -6 -5 -5 -5 -5 -4 -4 -4 -4 -4 -3 -3 -3 -3 -2 -1 -1 -------- Run | Scr Mat Mat Mat Sto Fac Fac Fac Upp Upp Zhi Pro Fac Upp Upp War Pro Res Gar Res Res Acc Com Total Allies 22 | . . . . 10 . . 3 . . . . . . . . . . 9 . . . . Largest Group 10 | . . . . 10 10 10 3 . . . . . . . . . . 9 6 . . . Highest-Rated Group 453 | . . . . 173 173 173 90 . . . . . . . . . . 453 411 . . . Highest-Rated Ally 89 | . . . . 29 29 29 30 . . . . . . . . . . 89 89 . . . Total Orders 1 | . . . . . 1 . . . . . . . . . . . . . . . . . AID 1 | . . . . . 1 . . . . . . . . . . . . . . . . . Ally Attacks 184 | . . . . . 14 80 13 . . . . . . . . . . 22 55 . . . Total Damage 2748 | . . . . . 131 958 344 . . . . . . . . . . 518 797 . . . Kills 21 | . . . . . 1 10 1 . . . . . . . . . . 6 3 . . . Allies Corrupted 1 | . . . . . . . . . . . . . . . . . . . 1 . . . Allies Melted 2 | . . . . . . . . . . . . . . . 1 . . . . 1 . . Intel | -11 -10 -9 -8 -8 -7 -6 -5 -5 -5 -5 -4 -4 -4 -4 -4 -3 -3 -3 -3 -2 -1 -1 ------- Run | Scr Mat Mat Mat Sto Fac Fac Fac Upp Upp Zhi Pro Fac Upp Upp War Pro Res Gar Res Res Acc Com Robot Analysis Total 4 | . . . . . . . . . . 4 . . . . . . . . . . . . Derelict Logs Recovered 3 | . . . . . . . . 1 . . 2 . . . . . . . . . . . Drone Launches . | . . . . . . . . . . . . . . . . . . . . . . . Drone Recoveries . | . . . . . . . . . . . . . . . . . . . . . . . Exploration | -11 -10 -9 -8 -8 -7 -6 -5 -5 -5 -5 -4 -4 -4 -4 -4 -3 -3 -3 -3 -2 -1 -1 ------------- Run | Scr Mat Mat Mat Sto Fac Fac Fac Upp Upp Zhi Pro Fac Upp Upp War Pro Res Gar Res Res Acc Com Turns Passed 16518 | 122 267 371 347 1152 558 443 532 1321 379 181 294 690 276 374 576 580 678 1366 1296 2052 789 1874 Spaces Moved 12006 | 76 169 223 205 686 515 349 444 1120 353 157 240 452 194 297 472 430 478 992 1031 1589 539 995 Core 5 | 4 . . . 1 . . . . . . . . . . . . . . . . . . Treads . | . . . . . . . . . . . . . . . . . . . . . . . Legs 12001 | 72 169 223 205 685 515 349 444 1120 353 157 240 452 194 297 472 430 478 992 1031 1589 539 995 Wheels . | . . . . . . . . . . . . . . . . . . . . . . . Hover . | . . . . . . . . . . . . . . . . . . . . . . . Flight . | . . . . . . . . . . . . . . . . . . . . . . . Fastest Speed 50 | 50 120 120 120 90 90 90 96 96 102 102 102 108 120 120 120 120 114 102 94 94 120 120 Average Speed 109 | 116 120 120 120 120 90 92 96 100 102 102 107 112 120 120 120 120 117 105 97 109 120 120 Slowest Speed 600 | 120 120 120 120 600 90 96 96 102 102 102 108 120 120 120 120 120 120 114 102 120 120 120 Overloaded Moves . | . . . . . . . . . . . . . . . . . . . . . . . Propulsion Burnouts . | . . . . . . . . . . . . . . . . . . . . . . . Robots Hopped . | . . . . . . . . . . . . . . . . . . . . . . . Cave-ins Triggered 1 | . . . . . . . . . . . . . . . . . . . . . 1 . Exploration Rate (%) 42 | 4 41 30 16 88 14 14 16 89 57 61 50 17 41 55 77 55 16 90 31 65 18 37 Regions Visited 22 Branch Regions 10 Pre-discovered Areas 3 | . . . . . . . . . . 3 . . . . . . . . . . . . Known Exits Taken 21 | 1 1 1 1 1 1 1 1 1 1 1 1 1 1 1 1 1 1 . 1 1 1 . Unknown Exits Taken . | . . . . . . . . . . . . . . . . . . . . . . . Scrap Searched 6 | . . . . . . . . 3 1 . 1 . . 1 . . . . . . . . Spaces Dug 22 | . . . . 10 . . . 1 . . . . . . . . . . . . 11 . Terrain Destroyed 774 | . . . . 13 . . 5 20 6 . 11 71 12 7 . 35 36 37 59 86 79 297 Melee . | . . . . . . . . . . . . . . . . . . . . . . . Projectile 625 | . . . . . . . 5 19 6 . 11 28 12 7 . 35 36 32 59 86 52 237 AOE 142 | . . . . 13 . . . . . . . 43 . . . . . . . . 27 59 Terrain Rammed . | . . . . . . . . . . . . . . . . . . . . . . . Walls Destroyed . | . . . . . . . . . . . . . . . . . . . . . . . Machines Disabled . | . . . . . . . . . . . . . . . . . . . . . . . Actions | -11 -10 -9 -8 -8 -7 -6 -5 -5 -5 -5 -4 -4 -4 -4 -4 -3 -3 -3 -3 -2 -1 -1 --------- Run | Scr Mat Mat Mat Sto Fac Fac Fac Upp Upp Zhi Pro Fac Upp Upp War Pro Res Gar Res Res Acc Com Total 14071 | 91 193 281 256 858 572 413 502 1245 359 177 262 563 223 308 482 469 552 1199 1222 1806 637 1401 Wait 375 | . . 3 3 33 26 2 17 47 . . . 18 . 1 . . 7 37 66 18 2 95 Move 11982 | 75 168 222 204 685 514 348 443 1119 352 156 239 451 193 296 471 429 477 990 1030 1588 537 995 Hop . | . . . . . . . . . . . . . . . . . . . . . . . Pick Up 58 | . 1 1 3 4 1 5 1 6 . 1 . 2 1 1 3 3 3 3 3 4 7 5 Fast Attach 146 | 8 . 7 4 10 2 5 4 5 1 10 3 7 1 1 3 1 8 6 12 32 4 12 Attach 15 | . . 2 . 2 1 . . . . . . . 1 . . . 2 . 3 2 1 1 Detach 27 | . . 5 1 3 2 . 1 . . . . . 1 . . . 2 2 3 5 . 2 Swap 31 | . . . 1 3 2 1 . . . . 1 10 . . . 1 1 1 . 2 . 8 Drop 177 | . . 5 5 13 3 7 3 11 1 10 4 17 1 2 5 4 10 7 14 35 9 11 Fire 687 | 8 22 25 23 65 15 23 20 33 5 . 6 30 8 4 . 15 22 61 60 53 28 161 Melee . | . . . . . . . . . . . . . . . . . . . . . . . Ram . | . . . . . . . . . . . . . . . . . . . . . . . Kick 16 | . . . . 3 . 2 1 . . . . 3 . . . . 2 . 1 . 1 3 Crush . | . . . . . . . . . . . . . . . . . . . . . . . Escape Stasis 8 | . . . . . . . . . . . . . . . . . . 7 . . 1 . Rewire 46 | . . . . . . . . . . . . . . . . . . 46 . . . . Trap . | . . . . . . . . . . . . . . . . . . . . . . . Miscellaneous 503 | . 2 11 12 37 6 20 12 24 . . 9 25 17 3 . 16 18 39 30 67 47 108 Route ------- -11/Scrapyard -10/Materials (discovered 2 exits: *Mat / *Min) -9/Materials (discovered 2 exits: *Mat / *Min) -8/Materials -8/Storage (discovered 2 exits: *Fac / Rec) -7/Factory -6/Factory (discovered 2 exits: *Fac / *Low) -5/Factory (discovered 3 exits: *Fac / *Upp x2) -5/Upper Caves -5/Upper Caves (discovered 2 exits: *Fac / *Zhi) -5/Zhirov -4/Proximity Caves -4/Factory (discovered 3 exits: *Upp x2 / Arm) -4/Upper Caves -4/Upper Caves (discovered 2 exits: *Res / *War) -4/Warlord -3/Proximity Caves -3/Research (discovered 4 exits: *Res x2 / *Qua / Gar) -3/Garrison (discovered 3 exits: *Res x3) -3/Research (discovered 3 exits: *Res / Qua x2) -2/Research -1/Access -1/Command (discovered 1 exit: Sur) History --------- Turn | Location | Event 3 | -11/Scrapyard | Upgraded with Propulsion slot (x1) 3 | -11/Scrapyard | Upgraded with Utility slot (x2) 3 | -11/Scrapyard | Upgraded with Weapon slot (x1) 7 | -11/Scrapyard | Identified exit to Materials 7 | -11/Scrapyard | Discovered exit to Materials (range 16) 123 | -11/Scrapyard | Entered Materials 262 | -10/Materials | Identified exit to Mines 262 | -10/Materials | Discovered exit to Mines (range 20) 314 | -10/Materials | Build established: Hacker-Skirmisher 327 | -10/Materials | Identified exit to Materials 327 | -10/Materials | Discovered exit to Materials (range 16) 390 | -10/Materials | Entered another Materials area 392 | -9/Materials | Reached level 2 392 | -9/Materials | Reached level 3 392 | -9/Materials | Upgraded with Power slot (x1) 392 | -9/Materials | Upgraded with Propulsion slot (x1) 522 | -9/Materials | Identified exit to Mines 522 | -9/Materials | Discovered exit to Mines (range 17) 579 | -9/Materials | Reached level 4 715 | -9/Materials | Upgraded with Weapon slot (x1) 725 | -9/Materials | Identified exit to Materials 725 | -9/Materials | Discovered exit to Materials (range 19) 761 | -9/Materials | Entered another Materials area 763 | -8/Materials | Reached level 5 763 | -8/Materials | Reached level 6 784 | -8/Materials | Identified exit to Storage 784 | -8/Materials | Discovered exit to Storage (range 7) 850 | -8/Materials | Upgraded with Utility slot (x2) 971 | -8/Materials | Reached level 7 1108 | -8/Materials | Entered Storage 1110 | -8/Storage | Reached level 8 1304 | -8/Storage | Upgraded with Weapon slot (x1) 1404 | -8/Storage | Reached level 9 1444 | -8/Storage | Upgraded with Utility slot (x1) 1636 | -8/Storage | Build established: Scavenger-Skirmisher 1946 | -8/Storage | Identified exit to Recycling 1946 | -8/Storage | Discovered exit to Recycling (range 15) 2173 | -8/Storage | Assisted by bots powering up and referring to "LRC-V3" 2187 | -8/Storage | Identified exit to Factory 2187 | -8/Storage | Discovered exit to Factory (range 9) 2260 | -8/Storage | Entered Factory 2260 | -7/Factory | Accompanied by 10 allies 2262 | -7/Factory | Reached level 10 2262 | -7/Factory | Reached level 11 2264 | -7/Factory | Upgraded with Propulsion slot (x1) 2464 | -7/Factory | Build established: Commander-Skirmisher 2790 | -7/Factory | Identified exit to Factory 2790 | -7/Factory | Discovered exit to Factory (range 3) 2818 | -7/Factory | Entered another Factory area 2818 | -6/Factory | Accompanied by 10 allies 2820 | -6/Factory | Reached level 12 2820 | -6/Factory | Reached level 13 2821 | -6/Factory | Upgraded with Propulsion slot (x1) 2832 | -6/Factory | Identified exit to Lower Caves 2832 | -6/Factory | Discovered exit to Lower Caves (range 14) 2885 | -6/Factory | Spotted B-75 Beast 3003 | -6/Factory | Reached level 14 3149 | -6/Factory | Identified exit to Factory 3149 | -6/Factory | Discovered exit to Factory (range 18) 3261 | -6/Factory | Entered another Factory area 3261 | -5/Factory | Accompanied by 1 ally 3263 | -5/Factory | Reached level 15 3263 | -5/Factory | Reached level 16 3271 | -5/Factory | Upgraded with Utility slot (x1) 3398 | -5/Factory | Identified exit to Factory 3398 | -5/Factory | Discovered exit to Factory (range 15) 3400 | -5/Factory | Build established: Scavenger-Skirmisher 3568 | -5/Factory | Identified exit to Upper Caves 3731 | -5/Factory | Fabricated L-41 Fighter? 3767 | -5/Factory | Reached level 17 3793 | -5/Factory | Entered Upper Caves 3849 | -5/Upper Caves | Encountered a Warlord checkpoint 3880 | -5/Upper Caves | Attracted the attention of an 0b10 checkpoint 4130 | -5/Upper Caves | Learned Factory terminal intel 4226 | -5/Upper Caves | Reached level 18 4771 | -5/Upper Caves | Attracted the attention of an 0b10 base 4901 | -5/Upper Caves | Learned Armory garrison access intel 4907 | -5/Upper Caves | Destroyed 13 combat bots 5073 | -5/Upper Caves | Identified exit to Upper Caves 5073 | -5/Upper Caves | Discovered exit to Upper Caves (range 13) 5114 | -5/Upper Caves | Entered another Upper Caves area 5116 | -5/Upper Caves | Reached level 19 5190 | -5/Upper Caves | Discovered exit to Factory (range 10) 5439 | -5/Upper Caves | Identified exit to Zhirov 5439 | -5/Upper Caves | Discovered exit to Zhirov (range 8) 5493 | -5/Upper Caves | Entered Zhirov 5493 | -5/Zhirov | Identified exit to Proximity Caves 5493 | -5/Zhirov | Discovered exit to Proximity Caves (range 3) 5514 | -5/Zhirov | Met Zhirov 5538 | -5/Zhirov | Learned location of Quarantine (-3) 5538 | -5/Zhirov | Learned location of Testing (-2) 5538 | -5/Zhirov | Learned location of Command (-1) 5544 | -5/Zhirov | Zhirov requested help retrieving the SGEMP Prototype 5562 | -5/Zhirov | Found Alien Artifact 5562 | -5/Zhirov | Identified Integrated Dissipator 5562 | -5/Zhirov | Installed Integrated Dissipator, increased core heat dissipation (+20) 5580 | -5/Zhirov | Found Alien Artifact 5674 | -5/Zhirov | Entered Proximity Caves 5676 | -4/Proximity Caves | Reached level 20 5802 | -4/Proximity Caves | Learned 4 Research zone layouts 5830 | -4/Proximity Caves | Attracted the attention of an 0b10 checkpoint 5968 | -4/Proximity Caves | Entered Factory 5969 | -4/Factory | Loaded intel: 26 terminal locations 5970 | -4/Factory | Reached level 21 5976 | -4/Factory | Identified Transdimensional Reconstructor 6097 | -4/Factory | Identified exit to Upper Caves 6097 | -4/Factory | Identified exit to Armory 6173 | -4/Factory | Reached level 22 6658 | -4/Factory | Entered Upper Caves 6660 | -4/Upper Caves | Reached level 23 6663 | -4/Upper Caves | Upgraded with Utility slot (x1) 6705 | -4/Upper Caves | Spotted B-86 Titan 6719 | -4/Upper Caves | Destroyed B-86 Titan 6829 | -4/Upper Caves | Attacked by a delusional Derelict stockpiling parts 6902 | -4/Upper Caves | Identified exit to Upper Caves 6902 | -4/Upper Caves | Discovered exit to Upper Caves (range 15) 6934 | -4/Upper Caves | Entered another Upper Caves area 6942 | -4/Upper Caves | Identified exit to Research 6942 | -4/Upper Caves | Discovered exit to Research (range 8) 7192 | -4/Upper Caves | Attracted the attention of an 0b10 checkpoint 7291 | -4/Upper Caves | Encountered a Warlord checkpoint 7294 | -4/Upper Caves | Identified exit to Warlord 7294 | -4/Upper Caves | Discovered exit to Warlord (range 14) 7308 | -4/Upper Caves | Entered Warlord 7310 | -4/Warlord | Reached level 24 7349 | -4/Warlord | System corruption cleaned by Quarantine Array 7465 | -4/Warlord | Received a Watcher feed algorithm from an ecstatic Tinkerer 7518 | -4/Warlord | Met Warlord 7537 | -4/Warlord | Warlord's base attacked by MAIN.C 7611 | -4/Warlord | Found Prototype Energy Cannon 7611 | -4/Warlord | Identified Vortex Driver 7617 | -4/Warlord | Found Prototype Energy Gun 7617 | -4/Warlord | Identified Vortex Rail 7628 | -4/Warlord | Found Vortex Driver 7851 | -4/Warlord | Opened side exit 7854 | -4/Warlord | Identified exit to Proximity Caves 7854 | -4/Warlord | Discovered exit to Proximity Caves (range 16) 7872 | -4/Warlord | Spotted Executioner 7884 | -4/Warlord | Entered Proximity Caves 7983 | -3/Proximity Caves | Reached level 25 8121 | -3/Proximity Caves | Upgraded with Weapon slot (x1) 8438 | -3/Proximity Caves | Discovered exit to Research (range 14) 8464 | -3/Proximity Caves | Entered Research 8465 | -3/Research | Identified exit to Research 8466 | -3/Research | Reached level 26 8530 | -3/Research | Discovered exit to Research (range 16) 8556 | -3/Research | Identified exit to Quarantine 8556 | -3/Research | Discovered exit to Quarantine (range 15) 8650 | -3/Research | Found Unknown Protection 8650 | -3/Research | Identified Imp. Powered Armor 8910 | -3/Research | Spotted B-86 Titan 8974 | -3/Research | Reached level 27 8980 | -3/Research | Upgraded with Utility slot (x1) 9132 | -3/Research | Identified exit to Garrison 9142 | -3/Research | Entered Garrison 9177 | -3/Garrison | Triggered checkpoint 9240 | -3/Garrison | Triggered checkpoint 9265 | -3/Garrison | Destroyed 8 combat bots 9269 | -3/Garrison | Triggered checkpoint 9286 | -3/Garrison | Build established: Scavenger-Gunner 9405 | -3/Garrison | Identified exit to Research 9405 | -3/Garrison | Discovered exit to Research (range 19) 9432 | -3/Garrison | Installed Relay Interface Framework 9432 | -3/Garrison | Reached level 28 9458 | -3/Garrison | Triggered checkpoint 9480 | -3/Garrison | Garrison Relay disabled 9584 | -3/Garrison | Triggered checkpoint 9637 | -3/Garrison | Garrison Relay disabled 9944 | -3/Garrison | Triggered checkpoint 9959 | -3/Garrison | Garrison Relay disabled 9968 | -3/Garrison | Triggered checkpoint 9974 | -3/Garrison | Discovered exit to Research (range 19) 10022 | -3/Garrison | Triggered checkpoint 10118 | -3/Garrison | Garrison Relay disabled 10214 | -3/Garrison | Discovered exit to Research (range 13) 10252 | -3/Garrison | Triggered checkpoint 10277 | -3/Garrison | Garrison Relay disabled 10508 | -3/Garrison | Entered Research 10508 | -3/Research | Accompanied by 6 allies 10520 | -3/Research | P-80 Master assimilated allied Swordsman 8b 10537 | -3/Research | Reached level 29 10538 | -3/Research | P-80 Master assimilated allied Electro 8b 10596 | -3/Research | Upgraded with Utility slot (x1) 10780 | -3/Research | Discovered exit to Research (range 16) 10808 | -3/Research | First assault squad dispatched 11000 | -3/Research | Destroyed 8 combat bots 11165 | -3/Research | Found Powered Armor 11500 | -3/Research | Found Prototype Processor 11500 | -3/Research | Identified Spectral Analyzer 11804 | -3/Research | Entered another Research area 11804 | -2/Research | Warlord forces began assault on 0b10 11806 | -2/Research | Reached level 30 11914 | -2/Research | Research machine network offline 11971 | -2/Research | Reached level 31 12111 | -2/Research | Met up with Warlord 12177 | -2/Research | Spotted Striker 12222 | -2/Research | Found Prototype Device 12222 | -2/Research | Identified Adv. Particle Accelerator 12243 | -2/Research | Upgraded with Utility slot (x1) 12306 | -2/Research | Spotted Striker 12356 | -2/Research | Destroyed 7 combat bots 12384 | -2/Research | Spotted Striker 12385 | -2/Research | Spotted Executioner 12401 | -2/Research | Spotted Executioner 12401 | -2/Research | Spotted Executioner 12440 | -2/Research | Spotted B-90 Cyclops 12588 | -2/Research | Borebot progress halted 12622 | -2/Research | Borebot progress halted 12794 | -2/Research | Spotted B-90 Cyclops 12809 | -2/Research | Destroyed B-90 Cyclops 13237 | -2/Research | Found Prototype Processor 13237 | -2/Research | Identified Exp. Core Analyzer 13242 | -2/Research | Found Prototype Device 13242 | -2/Research | Identified Adv. Kinecellerator 13300 | -2/Research | Warlord invited to help at Command 13300 | -2/Research | Reached level 32 13417 | -2/Research | Spotted Striker 13436 | -2/Research | Spotted Striker 13588 | -2/Research | Upgraded with Power slot (x1) 13687 | -2/Research | Spotted B-90 Cyclops 13822 | -2/Research | Identified exit to Access 13822 | -2/Research | Discovered exit to Access (range 15) 13856 | -2/Research | Entered Access 13858 | -1/Access | Reached level 33 14088 | -1/Access | Spotted B-99 Colossus 14121 | -1/Access | Destroyed B-99 Colossus 14134 | -1/Access | Found Prototype Ballistic Gun 14134 | -1/Access | Identified Multirail 14594 | -1/Access | Crushed by falling debris 14602 | -1/Access | Identified exit to Command 14602 | -1/Access | Discovered exit to Command (range 10) 14645 | -1/Access | Entered Command 14647 | -1/Command | Reached level 34 14895 | -1/Command | First assault squad dispatched 14913 | -1/Command | Phase Generator disabled 14986 | -1/Command | Disengaged cave seal 14986 | -1/Command | Derelicts emerged from the dark tunnel 14986 | -1/Command | Welcomed Warlord to Command 14986 | -1/Command | Reached level 35 15009 | -1/Command | Found Prototype Device 15009 | -1/Command | Identified Exp. Thermal Shield 15051 | -1/Command | Identified exit to Surface 15051 | -1/Command | Discovered exit to Surface (range 18) 15215 | -1/Command | Spotted Striker 15216 | -1/Command | Destroyed Striker 15224 | -1/Command | Spotted Executioner 15225 | -1/Command | Destroyed Executioner 15227 | -1/Command | Spotted Executioner 15227 | -1/Command | Destroyed Executioner 15238 | -1/Command | Spotted B-99 Colossus 15238 | -1/Command | Spotted Alpha 7 15245 | -1/Command | Spotted Alpha 7 15253 | -1/Command | Destroyed B-99 Colossus 15257 | -1/Command | Spotted Striker 15261 | -1/Command | Spotted Executioner 15263 | -1/Command | Spotted Executioner 15266 | -1/Command | Destroyed Striker 15266 | -1/Command | Destroyed Executioner 15272 | -1/Command | Destroyed Executioner 15293 | -1/Command | Spotted B-99 Colossus 15448 | -1/Command | Spotted M Guard 15448 | -1/Command | Spotted M Guard 15450 | -1/Command | Spotted Combat Programmer 15451 | -1/Command | Spotted Combat Programmer 15455 | -1/Command | Warlord commented on Warlord statues 15480 | -1/Command | Destroyed M Guard 15485 | -1/Command | Destroyed Combat Programmer 15485 | -1/Command | All MAIN.C guards destroyed 15528 | -1/Command | Destroyed 7 combat bots 15842 | -1/Command | Spotted B-99 Colossus 15873 | -1/Command | Destroyed B-99 Colossus 16230 | -1/Command | Reached level 36 16277 | -1/Command | Warlord destroyed during the assault 16277 | -1/Command | Destroyed Warlord 16318 | -1/Command | Destroyed 53 combat bots 16360 | -1/Command | High security lockdown imminent 16387 | -1/Command | Destroyed 13 combat bots 16419 | -1/Command | Core integrity fell below 50% 16425 | -1/Command | Reached level 37 16440 | -1/Command | High security lockdown engaged 16443 | -1/Command | Core integrity fell below 20% 16451 | -1/Command | Destroyed 21 combat bots 16519 | -1/Command | Destroyed by G-73 Enforcer with Phase Gun Last Messages --------------- 16508_ Helical Railgun crushed and broken. 16508_ E-15 Imp destroyed. 16508_ Slug penetrates G-73 Enforcer. 16509_ G-73 Enforcer destroyed. 16509_ Slug penetrates H-88 Terminator. 16509_ Switching to secondary target: G-73 Enforcer. 16509_ Slug penetrates G-73 Enforcer. 16509_ G-73 Enforcer destroyed. 16510_ Acquired 10 matter. 16510_ Slug penetrates Reinforced Barrier. 16511_ System corrupted: Matter fused (-9). 16511_ Slug penetrates G-73 Enforcer. 16512_ Acquired 19 matter. 16514_ Penetrated by Slug. 16514_ Slug penetrates B-74 Champion. 16515_ Protomatter-76 decays. 16517_ Slug penetrates Reinforced Barrier. 16517_ Penetrated by Slug. 16518_ Drone sends a signal. 16519_ Acquired 10 matter. Map ----- +----------------------------------------------------+ | ????????????????????????????????????#!!|* =|*/% !% | | ????????????????????????????????????#!=*%%=*% !%[ | | ????????????????????????????????????##%%![! = %# | | ????????????????????????????????????###![=% [=# | | ????????????????????????????????????# *% %!" "=# | | ?????????????????????????????????# #### *%%[=###=# | | ?????????????????????????????????#%%%[!==[%!= ![ ! | | ?????????????????????????????????######%%! =###### | | ??????????????????????????????????????#=|! !#????? | | ??????????????????????????????????????# == #????? | | ??????????????????????????????????????# "= ##???? | | ??????????????????????????????????????# #| ["#??#? | | ??????????????????????????????????????# #!*!##?? ? | | ??????????????????????????????????????# [*!=#??? ? | | ??????????????????????????????????????# !=#??? ? | | ??????????????????????????????????????# *!*=##?? ? | | ??????????????????????????????????????###[[= #?? ? | | ????????????????????????????????????????#!=!##?# # | | ???????????????????????????????????????## ##?# # | | ???????????????????????????????????????#" #?# # | | ???????????????????????????????????????## ##?# # | | ????????????????????????????????????????# #??# # | | ???????????????#######################??# #??# # | | ???????????????+ !=[b /h%h%=[#??# #??# # | | ????" + =*=!ghb[h[!%[#??# #??# # | | ???? ; @%[g[g[h%*=*#??# #??# # | | ???? ###################bl%#??# #??# # | | ?????????????????????????????????# ??#### #??# # | | ?????????????????????????????????#? ## ##"#####"# | | ?????????????????????????????????# ! ##"!!!"##!!= | | ???????????????????????????????###+ ?####] =#" ] ! | | ???????????????????????????????# " * !!]! !! | | ???????????????????????????????### !*! | | ?????????????????????????????????# *!! | | ?????????????????????????????????# ] **! | | ?????????????????????????????????# !* | | ?????????????????????????????????# ### ##" | | ?????????????????????????????????######?# ### | | ????????????????????????????????????????#####?##"# | | ???????????????????????????????????????????????# # | | ???????????????????????????????????????????????# # | | ???????????????????????????????????????????????# # | | ???????????????????????????????????????????????# # | | ???????????????????????????????????????????????# # | | ???????????????????????????????????????????????# # | | ???????????????????????????????????????????????# # | | ???????????????????????????????????????????????# # | | ???????????????????????????????????????????????# # | | ???????????????????????????????????????????????# # | | ???????????????????????????????????????????????? ? | +----------------------------------------------------+ Best States ------------- Heat Dissipation 99 Energy Generation 87 Energy Capacity 850 Matter Stores 1450 Matter Capacity 1450 Sight Range 22 Robot Scan Range 30 Terrain Scan Range 20 Terrain Scan Density 610 ECM Strength 1 Jamming Range 16 Armor Coverage 800 Resistance: KI 65 Resistance: TH 65 Resistance: EX 55 Resistance: EM 35 Resistance: I 35 Resistance: S 35 Resistance: P 35 Power Shielding 90 Weapon Cycling 25 Phase Shifting 15 Evasion (%) 70 Target Analysis 8 Core Analysis 8 Armor Integrity Analysis 40 Recoil Reduction 6 Kinecelleration 50 Salvage Targeting 3 Offensive Hacking 20 Item Schematics ----------------- Exp. Optical Array | -5/Zhirov | Free Imp. Arc Thrower | -5/Zhirov | Free Assault Drone Bay | -5/Zhirov | Free Exp. Heat Sink | -5/Zhirov | Free Robot Schematics ------------------ None Fabricated ------------ L-41 Fighter | x3 | -5/Factory | Preloaded Alien Tech Used ----------------- Integrated Dissipator Achievements -------------- None Challenges ------------ None RPGLIKE | -11 -10 -9 -8 -8 -7 -6 -5 -5 -5 -5 -4 -4 -4 -4 -4 -3 -3 -3 -3 -2 -1 -1 --------- Run | Scr Mat Mat Mat Sto Fac Fac Fac Upp Upp Zhi Pro Fac Upp Upp War Pro Res Gar Res Res Acc Com Levels Raised 36 | . . 3 3 2 2 3 3 1 1 . 1 2 1 . 1 1 2 1 1 3 1 4 XP Earned 60243 | 6000 605 4274 4692 3805 2609 4724 3383 2900 750 650 1350 3230 604 591 591 1900 2743 2534 1189 3538 2250 5331 XP Spent 59805 | 5950 . 4430 3120 4400 3100 4500 2735 3165 1500 . 1300 1280 3100 . 1750 1400 2600 . 3450 4720 900 6405 Upgrades 122 | 17 . 15 8 6 5 8 4 10 3 . 2 3 2 . 2 1 1 . 2 6 4 23 Power Slot 2 | . . 1 . . . . . . . . . . . . . . . . . 1 . . Propulsion Slot 4 | 1 . 1 . . 1 1 . . . . . . . . . . . . . . . . Utility Slot 10 | 2 . . 2 1 . . 1 . . . . . 1 . . . 1 . 1 1 . . Weapon Slot 4 | 1 . 1 . 1 . . . . . . . . . . . 1 . . . . . . Core Integrity 24 | . . 2 . . 2 . . 2 . . . 2 . . . . . . . . . 16 Heat Dissipation 9 | . . . 5 . . . . . . . . . . . . . . . . 4 . . Energy Generation 2 | . . 1 . . . . . . . . . . . . . . . . 1 . . . Matter Storage 17 | . . . . . . 2 2 7 3 . . . . . . . . . . . . 3 Mass Support 2 | . . . . . . 2 . . . . . . . . . . . . . . . . Inventory Capacity 6 | 3 . . . . 1 1 . . . . . . . . 1 . . . . . . . Sight Range 6 | 4 . . . . 1 . . . . . . 1 . . . . . . . . . . Sensor Range 15 | 5 . 7 . . . 2 . 1 . . . . . . . . . . . . . . Terrain Scan Density 6 | 1 . 2 1 . . . 1 . . . . . . . 1 . . . . . . . Ranged Accuracy 4 | . . . . 2 . . . . . . 2 . . . . . . . . . . . TH Resistance % 4 | . . . . . . . . . . . . . . . . . . . . . . 4 EX Resistance % 4 | . . . . . . . . . . . . . . . . . . . . . 4 . KI Damage % 3 | . . . . 2 . . . . . . . . 1 . . . . . . . . . Protomatter Created 8966 | . 14 103 157 642 . 167 256 585 . . 84 397 80 56 . 204 238 616 711 974 441 3241 Integrity Restored 9917 | . 42 213 214 661 114 354 214 397 . . 167 489 358 38 . 306 305 681 603 1394 998 2369 Core 6051 | . 42 111 158 425 58 209 123 226 . . 102 292 188 25 . 221 164 438 377 776 703 1413 Parts 3866 | . . 102 56 236 56 145 91 171 . . 65 197 170 13 . 85 141 243 226 618 295 956 Protomatter Decayed 15957 | . . 27 . 422 . 233 182 468 . . 26 232 . 42 263 139 64 690 671 8382 838 3278 Game ------ Seed BombSlugBuckler Manual? 0 Play Time 02:55:56 Cumulative 224.6 hours Start 2022.06.06 @ 14:24:46 End 2022.06.06 @ 20:29:27 Sessions 1 Manual Loads 0 Difficulty Explorer Special Mode Winter2019/RPGLIKE Game No. 74 Rogue 0 Adventurer 1 Explorer 73 Win Type - Total 15 Types 8/0/4/3/0/0/0/0/0 Lore% 84 Gallery% 86 Achievement% 72 Wizard Run 0 Options --------- ASCII 0 Keyboard 1 Movement Numpad Keybinds 0 Fullscreen 0 Font 14/Terminus Map View 76x50 Tactical HUD 1 Map Filters BRIGHTNESS(150) Filters NONE Steam 1 RUN: 1bd1e6b8-13c9-47f6-98a2-403e34376336